fUST/lending_fUST_20250910
["ID","MTS","AMOUNT","RATE_DAILY","PERIOD"]
[384478794,1757435442490,-160.0,0.00013783,2]
[384478796,1757435442499,-203.28455737,0.00013783,2]
[384478798,1757435442508,-417.15472785,0.00013783,2]
[384478800,1757435442519,-217.65034598,0.00013783,2]
[384478802,1757435442528,-160.0,0.00013783,2]
[384478804,1757435442537,-398.0,0.00013842,2]
[384478806,1757435442546,-500.0,0.00013873,2]
[384478808,1757435442555,-243.75027178,0.00013873,2]
[384478810,1757435442564,-501.49623136,0.00013873,2]
[384478812,1757435442573,-316.29247482,0.00013873,2]
[384478815,1757435442582,-500.0,0.00013873,2]
[384478817,1757435442591,-500.0,0.00013873,2]
[384478820,1757435442601,-500.0,0.00013873,2]
[384478822,1757435442610,-502.61682343,0.00013873,2]
[384478824,1757435442619,-504.10830129,0.00013873,2]
[384478825,1757435442628,-239.13686999,0.00013873,2]
[384478827,1757435442637,-574.18810144,0.00013873,2]
[384478829,1757435442646,-500.0,0.00013876,2]
[384478831,1757435442655,-10379.5853393,0.00013877,2]
[384478833,1757435442664,-979.6539707,0.00013877,2]
[384478836,1757435442673,-1152.5484867,0.00013877,2]
[384478838,1757435442683,-600.49030019,0.00013887,2]
[384478840,1757435442692,-303.76515095,0.00013889,2]
[384478842,1757435442701,-178062.38027728,0.0001389,2]
[384478844,1757435442710,-268.03107247,0.0001389,2]
[384478846,1757435442720,-162.310329,0.0001389,2]
[384478848,1757435442729,-151.0,0.0001389,2]
[384478850,1757435442738,-151.0,0.0001389,2]
[384478852,1757435442747,-151.0,0.0001389,2]
[384478854,1757435442757,-151.0,0.0001389,2]
[384478856,1757435442768,-151.0,0.0001389,2]
[384478858,1757435442777,-151.0,0.0001389,2]
[384478860,1757435442787,-151.0,0.0001389,2]
[384478862,1757435442797,-151.0,0.0001389,2]
[384478864,1757435442806,-151.0,0.0001389,2]
[384478866,1757435442815,-151.0,0.0001389,2]
[384478868,1757435442824,-1056.71857488,0.0001389,2]
[384478870,1757435442833,-300.810602,0.0001389,2]
[384478872,1757435442843,-151.0,0.0001389,2]
[384478874,1757435442852,-151.0,0.0001389,2]
[384478876,1757435442862,-151.0,0.0001389,2]
[384478878,1757435442871,-100531.44228188,0.000139,2]
[384478968,1757435444187,-8530.87219,0.000139,2]
[384478970,1757435444198,-287.70733921,0.000139,2]
[384478973,1757435444209,-29076.85572457,0.000139,2]
[384478975,1757435444218,-6500.57464861,0.000139,2]
[384478977,1757435444229,-75211.86490238,0.000139,2]
[384478979,1757435444240,-1611.73860243,0.000139,2]
[384479012,1757435444534,-480.0,0.00013698,2]
[384479014,1757435444544,-526.2831917,0.000139,2]
[384479016,1757435444556,-5032.33156172,0.000139,2]
[384479018,1757435444566,-151.0,0.000139,2]
[384479020,1757435444575,-151.0,0.000139,2]
[384479022,1757435444585,-151.0,0.000139,2]
[384479024,1757435444594,-151.0,0.000139,2]
[384479026,1757435444604,-151.0,0.000139,2]
[384479028,1757435444614,-151.0,0.000139,2]
[384479030,1757435444624,-151.0,0.000139,2]
[384479032,1757435444634,-151.0,0.000139,2]
[384479034,1757435444643,-151.0,0.000139,2]
[384479036,1757435444652,-151.0,0.000139,2]
[384479038,1757435444662,-197.515104,0.000139,2]
[384479040,1757435444671,-151.0,0.000139,2]
[384479042,1757435444681,-151.0,0.000139,2]
[384479044,1757435444690,-151.0,0.000139,2]
[384479046,1757435444700,-976.0,0.00013902,2]
[384479048,1757435444709,-2154.0,0.00013902,2]
[384479050,1757435444719,-634.0,0.00013902,2]
[384479052,1757435444728,-151.0,0.00013902,2]
[384479054,1757435444738,-151.0,0.00013902,2]
[384479056,1757435444747,-151.0,0.00013902,2]
[384479058,1757435444756,-151.0,0.00013902,2]
[384479060,1757435444765,-151.0,0.00013902,2]
[384479062,1757435444775,-151.0,0.00013902,2]
[384479064,1757435444785,-151.0,0.00013902,2]
[384479066,1757435444795,-409.0,0.00013902,2]
[384479068,1757435444804,-429.6,0.00013902,2]
[384479070,1757435444814,-151.0,0.00013902,2]
[384479072,1757435444824,-151.0,0.00013902,2]
[384479074,1757435444833,-276.909,0.00013902,2]
[384479076,1757435444843,-4027.0,0.00013925,2]
[384479078,1757435444853,-150.062,0.00013939,2]
[384479080,1757435444863,-150.068,0.00013939,2]
[384479082,1757435444873,-196.091,0.00013939,2]
[384479084,1757435444882,-168.0,0.00013949,2]
[384479086,1757435444893,-1106.04,0.00013959,2]
[384479088,1757435444902,-398.393,0.0001397,2]
[384479090,1757435444912,-300.0,0.00013971,2]
[384479092,1757435444922,-300.0,0.00013971,2]
[384479094,1757435444931,-300.0,0.00013971,2]
[384479096,1757435444941,-300.0,0.00013971,2]
[384479098,1757435444951,-300.0,0.00013971,2]
[384479100,1757435444960,-300.0,0.00013971,2]
[384479102,1757435444969,-300.0,0.00013971,2]
[384479104,1757435444980,-300.0,0.00013971,2]
[384479106,1757435444990,-300.0,0.00013971,2]
[384479108,1757435444999,-300.0,0.00013971,2]
[384479110,1757435445009,-300.0,0.00013971,2]
[384479112,1757435445019,-300.0,0.00013971,2]
[384479114,1757435445028,-300.0,0.00013971,2]
[384479116,1757435445037,-300.0,0.00013971,2]
[384479118,1757435445046,-300.0,0.00013971,2]
[384479120,1757435445055,-600.0,0.00013971,2]
[384479122,1757435445064,-8749.96132032,0.00013972,2]
[384479123,1757435445072,-157.0,0.00013972,2]
[384479125,1757435445082,-198.43274125,0.00013972,2]
[384479128,1757435445093,-500.0,0.00013972,2]
[384479130,1757435445103,-667.0,0.00013972,2]
[384479131,1757435445113,-500.0,0.00013972,2]
[384479134,1757435445122,-480.0,0.00013972,2]
[384479135,1757435445131,-480.0,0.00013972,2]
[384479138,1757435445141,-480.0,0.00013972,2]
[384479140,1757435445150,-315.9,0.00013972,2]
[384479142,1757435445159,-480.0,0.00013972,2]
[384479144,1757435445168,-480.0,0.00013972,2]
[384479146,1757435445178,-373.73368849,0.00013972,2]
[384479147,1757435445188,-480.0,0.00013972,2]
[384479150,1757435445198,-480.0,0.00013972,2]
[384479152,1757435445206,-480.0,0.00013972,2]
[384479154,1757435445215,-560.27883588,0.00013972,2]
[384479156,1757435445225,-694.65,0.00013972,2]
[384479158,1757435445236,-480.0,0.00013972,2]
[384479160,1757435445245,-480.0,0.00013972,2]
[384479162,1757435445255,-480.0,0.00013972,2]
[384479163,1757435445263,-1412.37,0.00013972,2]
[384479165,1757435445273,-564.95,0.00013972,2]
[384479167,1757435445282,-524.88,0.00013972,2]
[384479169,1757435445291,-803.11,0.00013972,2]
[384479171,1757435445301,-480.0,0.00013972,2]
[384479173,1757435445310,-812.52,0.00013972,2]
[384479175,1757435445319,-581.45,0.00013972,2]
[384479177,1757435445329,-783.08,0.00013972,2]
[384479179,1757435445338,-480.0,0.00013972,2]
[384479182,1757435445347,-480.0,0.00013972,2]
[384479184,1757435445356,-480.0,0.00013972,2]
[384479185,1757435445366,-480.0,0.00013972,2]
[384479187,1757435445375,-480.0,0.00013972,2]
[384479189,1757435445384,-480.0,0.00013972,2]
[384479191,1757435445393,-480.0,0.00013972,2]
[384479193,1757435445402,-480.0,0.00013972,2]
[384479195,1757435445412,-1800.13,0.00013972,2]
[384479198,1757435445422,-480.0,0.00013972,2]
[384479200,1757435445432,-480.0,0.00013972,2]
[384479202,1757435445441,-665.81,0.00013972,2]
[384479204,1757435445450,-611.63,0.00013972,2]
[384479205,1757435445460,-480.0,0.00013972,2]
[384479207,1757435445469,-480.0,0.00013972,2]
[384479209,1757435445479,-480.0,0.00013972,2]
[384479211,1757435445488,-675.75,0.00013972,2]
[384479213,1757435445496,-480.0,0.00013972,2]
[384479215,1757435445506,-480.0,0.00013972,2]
[384479217,1757435445515,-480.0,0.00013972,2]
[384479219,1757435445527,-848.53,0.00013972,2]
[384479221,1757435445536,-480.0,0.00013972,2]
[384479223,1757435445545,-491.68,0.00013972,2]
[384479225,1757435445555,-480.0,0.00013972,2]
[384479227,1757435445564,-480.0,0.00013972,2]
[384479229,1757435445574,-480.0,0.00013972,2]
[384479232,1757435445583,-480.0,0.00013972,2]
[384479234,1757435445593,-480.0,0.00013972,2]
[384479236,1757435445602,-480.0,0.00013972,2]
[384479238,1757435445611,-480.0,0.00013972,2]
[384479240,1757435445621,-694.78,0.00013972,2]
[384479242,1757435445630,-480.0,0.00013972,2]
[384479244,1757435445639,-828.96,0.00013972,2]
[384479246,1757435445649,-480.0,0.00013972,2]
[384479248,1757435445657,-648.62,0.00013972,2]
[384479250,1757435445667,-480.0,0.00013972,2]
[384479252,1757435445677,-480.0,0.00013972,2]
[384479254,1757435445686,-579.61188959,0.00013972,2]
[384479256,1757435445696,-480.0,0.00013972,2]
[384479258,1757435445705,-480.0,0.00013972,2]
[384479260,1757435445714,-2624.04,0.00013972,2]
[384479262,1757435445724,-788.7,0.00013972,2]
[384479264,1757435445734,-480.0,0.00013972,2]
[384479266,1757435445743,-2325.75,0.00013972,2]
[384479268,1757435445753,-660.59,0.00013972,2]
[384479270,1757435445763,-631.4,0.00013972,2]
[384479271,1757435445773,-1703.29,0.00013972,2]
[384479273,1757435445782,-480.0,0.00013972,2]
[384479275,1757435445793,-406.64322405,0.00013972,2]
[384479277,1757435445802,-557.45,0.00013972,2]
[384479279,1757435445811,-699.68,0.00013972,2]
[384479281,1757435445820,-878.22,0.00013972,2]
[384479283,1757435445830,-637.79,0.00013972,2]
[384479285,1757435445839,-480.0,0.00013972,2]
[384479287,1757435445848,-499.17,0.00013972,2]
[384479289,1757435445858,-533.76110276,0.00013972,2]
[384479291,1757435445867,-480.0,0.00013972,2]
[384479293,1757435445876,-1699.97,0.00013972,2]
[384479295,1757435445884,-238.65494765,0.00013972,2]
[384479297,1757435445893,-480.0,0.00013972,2]
[384479299,1757435445902,-480.0,0.00013972,2]
[384479301,1757435445912,-1064.15,0.00013972,2]
[384479303,1757435445921,-954.69,0.00013972,2]
[384479305,1757435445931,-938.51,0.00013972,2]
[384479306,1757435445940,-761.78,0.00013972,2]
[384479308,1757435445950,-480.0,0.00013972,2]
[384479310,1757435445959,-480.0,0.00013972,2]
[384479312,1757435445968,-480.0,0.00013972,2]
[384479314,1757435445977,-480.0,0.00013972,2]
[384479316,1757435445987,-1961.38,0.00013972,2]
[384479318,1757435445996,-480.0,0.00013972,2]
[384479320,1757435446007,-480.0,0.00013972,2]
[384479322,1757435446016,-480.0,0.00013972,2]
[384479324,1757435446026,-524.06,0.00013972,2]
[384479326,1757435446036,-480.0,0.00013972,2]
[384479328,1757435446046,-480.0,0.00013972,2]
[384479330,1757435446056,-2557.95,0.00013972,2]
[384479332,1757435446065,-480.0,0.00013972,2]
[384479334,1757435446075,-1441.73,0.00013972,2]
[384479336,1757435446084,-480.0,0.00013972,2]
[384479338,1757435446098,-480.0,0.00013972,2]
[384479340,1757435446107,-8801.6,0.00013972,2]
[384479342,1757435446116,-839.58,0.00013972,2]
[384479344,1757435446126,-480.0,0.00013972,2]
[384479346,1757435446136,-480.0,0.00013972,2]
[384479348,1757435446145,-480.0,0.00013972,2]
[384479350,1757435446155,-707.46,0.00013972,2]
[384479352,1757435446164,-480.0,0.00013972,2]
[384479354,1757435446175,-119.81080324,0.00013972,2]
[384479357,1757435446189,-435.79460205,0.00013972,2]
[384479359,1757435446200,-304.2614001,0.00013972,2]
[384479361,1757435446211,-301.23319461,0.00013972,2]
[384479363,1757435446220,-480.0,0.00013972,2]
[384479365,1757435446232,-876.44,0.00013972,2]
[384479367,1757435446241,-497.35,0.00013972,2]
[384479369,1757435446250,-623.96,0.00013972,2]
[384479371,1757435446259,-907.0,0.00013972,2]
[384479373,1757435446269,-480.0,0.00013972,2]
[384479375,1757435446278,-480.0,0.00013972,2]
[384479377,1757435446287,-512.29,0.00013972,2]
[384479378,1757435446296,-4520.31,0.00013972,2]
[384479380,1757435446306,-517.79,0.00013972,2]
[384479382,1757435446315,-3625.32,0.00013972,2]
[384479384,1757435446324,-623.06,0.00013972,2]
[384479386,1757435446333,-928.34721808,0.00013972,2]
[384479401,1757435446459,-294.03971746,0.00013698,2]
[384479403,1757435446471,-185.96028254,0.00013698,2]
[384479405,1757435446481,-204.19278192,0.00013972,2]
[384479407,1757435446490,-487.49,0.00013972,2]
[384479409,1757435446499,-1152.36,0.00013972,2]
[384479411,1757435446508,-1942.86,0.00013972,2]
[384479413,1757435446518,-34.24129706,0.00013972,2]
[384479415,1757435446529,-1640.65870294,0.00013972,2]
[384479417,1757435446539,-974.53,0.00013972,2]
[384479419,1757435446549,-480.0,0.00013972,2]
[384479421,1757435446558,-938.3,0.00013972,2]
[384479423,1757435446567,-1342.82,0.00013972,2]
[384479425,1757435446576,-595.70777903,0.00013972,2]
[384479456,1757435447037,-335.09476907,0.00013972,2]
[384480369,1757435487968,1000.0,0.0001858,20]
[384480376,1757435759456,613.60750057,0.00021,30]
[384480378,1757435774869,158.136518,0.00013275,2]
[384480379,1757435775165,212.69566366,0.00013284,2]
[384480398,1757436037006,268.03107247,0.00013291,2]
[384480408,1757436261603,268.03107247,0.00013291,2]
[384480410,1757436373942,10000.0,0.00012666,2]
[384480411,1757436418485,109082.2125736,0.00012667,2]
[384480415,1757436570159,213.4839598,0.00012666,2]
[384480472,1757436632440,-268.03107247,0.00013425,2]
[384480474,1757436632450,-268.03107247,0.00013561,2]
[384480476,1757436632459,-182.27040103,0.00013589,2]
[384480478,1757436632468,-480.78842307,0.00013595,2]
[384480480,1757436632478,-300.0,0.00013688,2]
[384480482,1757436632488,-575.75000878,0.00013688,2]
[384480505,1757436632698,-624.24999122,0.00013688,2]
[384480507,1757436632708,-1055.81780879,0.00013689,2]
[384481049,1757436638361,-876.92001173,0.00013688,2]
[384481051,1757436638370,-500.0,0.00013688,2]
[384481053,1757436638379,-500.0,0.00013688,2]
[384481055,1757436638388,-876.92001173,0.00013688,2]
[384481057,1757436638400,-500.0,0.00013688,2]
[384481059,1757436638410,-876.92001173,0.00013688,2]
[384481061,1757436638419,-500.0,0.00013688,2]
[384481063,1757436638428,-876.92001173,0.00013688,2]
[384481065,1757436638438,-237.39232228,0.00013688,2]
[384481067,1757436638448,-876.92001173,0.00013688,2]
[384481069,1757436638457,-500.0,0.00013688,2]
[384481071,1757436638466,-876.92001173,0.00013688,2]
[384481073,1757436638477,-500.0,0.00013688,2]
[384481075,1757436638486,-876.92001173,0.00013688,2]
[384481077,1757436638495,-500.0,0.00013688,2]
[384481079,1757436638504,-876.92001173,0.00013688,2]
[384481081,1757436638514,-500.0,0.00013688,2]
[384481083,1757436638523,-876.92001173,0.00013688,2]
[384481085,1757436638533,-500.0,0.00013688,2]
[384481087,1757436638542,-876.92001173,0.00013688,2]
[384481089,1757436638551,-500.0,0.00013688,2]
[384481091,1757436638561,-876.92001173,0.00013688,2]
[384481093,1757436638570,-876.92001173,0.00013688,2]
[384481095,1757436638579,-876.92001173,0.00013688,2]
[384481097,1757436638589,-500.0,0.00013688,2]
[384481099,1757436638599,-876.92001173,0.00013688,2]
[384481101,1757436638608,-500.0,0.00013688,2]
[384481103,1757436638617,-876.92001173,0.00013688,2]
[384481105,1757436638626,-876.92001173,0.00013688,2]
[384481107,1757436638636,-876.92001173,0.00013688,2]
[384481109,1757436638647,-500.0,0.00013688,2]
[384481111,1757436638656,-876.92001173,0.00013688,2]
[384481113,1757436638665,-876.92001173,0.00013688,2]
[384481115,1757436638675,-435.00269447,0.00013688,2]
[384481117,1757436638684,-876.92001173,0.00013688,2]
[384481119,1757436638693,-876.92001173,0.00013688,2]
[384481121,1757436638702,-500.0,0.00013688,2]
[384481123,1757436638712,-876.92001173,0.00013688,2]
[384481125,1757436638721,-876.92001173,0.00013688,2]
[384481127,1757436638731,-876.92001173,0.00013688,2]
[384481129,1757436638740,-876.92001173,0.00013688,2]
[384481131,1757436638751,-876.92001173,0.00013688,2]
[384481133,1757436638760,-876.92001173,0.00013688,2]
[384481135,1757436638770,-876.92001173,0.00013688,2]
[384481137,1757436638779,-876.92001173,0.00013688,2]
[384481139,1757436638788,-876.92001173,0.00013688,2]
[384481141,1757436638797,-876.92001173,0.00013688,2]
[384481143,1757436638806,-876.92001173,0.00013688,2]
[384481145,1757436638815,-876.92001173,0.00013688,2]
[384481148,1757436638824,-876.92001173,0.00013688,2]
[384481151,1757436638835,-876.92001173,0.00013688,2]
[384481154,1757436638844,-876.92001173,0.00013688,2]
[384481156,1757436638854,-876.92001173,0.00013688,2]
[384481158,1757436638864,-197.44487308,0.00013688,2]
[384481269,1757436640239,-302.55512692,0.00013688,2]
[384481271,1757436640249,-838.71687308,0.00013688,2]
[384481274,1757436640260,-38.20313865,0.00013688,2]
[384481276,1757436640270,-500.0,0.00013688,2]
[384481278,1757436640279,-876.92001173,0.00013688,2]
[384481280,1757436640289,-284.87684962,0.00013688,2]
[384481282,1757436640300,-357.46,0.00013688,2]
[384481284,1757436640311,-234.58316211,0.00013688,2]
[384481286,1757436640321,-876.92001173,0.00013688,2]
[384481288,1757436640331,-876.92001173,0.00013688,2]
[384481290,1757436640341,-876.92001173,0.00013688,2]
[384481292,1757436640351,-876.92001173,0.00013688,2]
[384481294,1757436640360,-876.92001173,0.00013688,2]
[384481296,1757436640371,-876.92001173,0.00013688,2]
[384481299,1757436640380,-876.92001173,0.00013688,2]
[384481301,1757436640389,-876.92001173,0.00013688,2]
[384481303,1757436640401,-876.92001173,0.00013688,2]
[384481305,1757436640411,-876.92001173,0.00013688,2]
[384481307,1757436640420,-876.92001173,0.00013688,2]
[384481309,1757436640430,-876.92001173,0.00013688,2]
[384481311,1757436640440,-876.92001173,0.00013688,2]
[384481313,1757436640449,-876.92001173,0.00013688,2]
[384481315,1757436640458,-876.92001173,0.00013688,2]
[384481317,1757436640468,-876.92001173,0.00013688,2]
[384481319,1757436640479,-876.92001173,0.00013688,2]
[384481321,1757436640489,-876.92001173,0.00013688,2]
[384481323,1757436640498,-876.92001173,0.00013688,2]
[384481325,1757436640508,-876.92001173,0.00013688,2]
[384481327,1757436640518,-876.92001173,0.00013688,2]
[384481329,1757436640528,-876.92001173,0.00013688,2]
[384481331,1757436640538,-876.92001173,0.00013688,2]
[384481333,1757436640547,-876.92001173,0.00013688,2]
[384481335,1757436640557,-876.92001173,0.00013688,2]
[384481337,1757436640567,-876.92001173,0.00013688,2]
[384481339,1757436640577,-144.18219121,0.00013689,2]
[384481341,1757436640587,-204.26293389,0.0001369,2]
[384481343,1757436640596,-500.0,0.00013696,2]
[384481345,1757436640606,-203.33210085,0.00013697,2]
[384481347,1757436640615,-197.20816558,0.00013697,2]
[384481349,1757436640624,-480.0,0.00013698,2]
[384481351,1757436640634,-636.76,0.00013698,2]
[384481353,1757436640643,-480.0,0.00013698,2]
[384481355,1757436640652,-480.0,0.00013698,2]
[384481357,1757436640662,-380.44687249,0.00013698,2]
[384481359,1757436640671,-480.0,0.00013698,2]
[384481361,1757436640680,-480.0,0.00013698,2]
[384481363,1757436640690,-480.0,0.00013698,2]
[384481365,1757436640699,-480.0,0.00013698,2]
[384481367,1757436640708,-480.0,0.00013698,2]
[384481369,1757436640717,-480.0,0.00013698,2]
[384481371,1757436640727,-481.69620982,0.00013698,2]
[384481373,1757436640735,-480.0,0.00013698,2]
[384481375,1757436640745,-480.0,0.00013698,2]
[384481377,1757436640754,-480.0,0.00013698,2]
[384481379,1757436640763,-480.0,0.00013698,2]
[384481381,1757436640772,-480.0,0.00013698,2]
[384481383,1757436640781,-480.0,0.00013698,2]
[384481385,1757436640791,-480.0,0.00013698,2]
[384481387,1757436640800,-480.0,0.00013698,2]
[384481389,1757436640809,-480.0,0.00013698,2]
[384481391,1757436640819,-555.57535561,0.00013698,2]
[384481393,1757436640829,-480.0,0.00013698,2]
[384481395,1757436640839,-480.0,0.00013698,2]
[384481397,1757436640848,-480.0,0.00013698,2]
[384481399,1757436640857,-480.0,0.00013698,2]
[384481401,1757436640866,-481.63209188,0.00013698,2]
[384481403,1757436640875,-482.02245497,0.00013698,2]
[384481405,1757436640884,-480.0,0.00013698,2]
[384481407,1757436640894,-480.0,0.00013698,2]
[384481408,1757436640902,-486.19925006,0.00013698,2]
[384481409,1757436640912,-480.0,0.00013698,2]
[384481410,1757436640921,-480.0,0.00013698,2]
[384481411,1757436640930,-754.7,0.00013698,2]
[384481412,1757436640939,-557.82,0.00013698,2]
[384481413,1757436640948,-480.0,0.00013698,2]
[384481414,1757436640958,-480.0,0.00013698,2]
[384481415,1757436640967,-480.0,0.00013698,2]
[384481416,1757436640976,-480.0,0.00013698,2]
[384481417,1757436640985,-480.0,0.00013698,2]
[384481418,1757436640994,-480.0,0.00013698,2]
[384481419,1757436641003,-480.0,0.00013698,2]
[384481420,1757436641012,-861.62,0.00013698,2]
[384481421,1757436641021,-480.0,0.00013698,2]
[384481422,1757436641030,-181.96477356,0.00013698,2]
[384481423,1757436641043,-298.03522644,0.00013698,2]
[384481425,1757436641053,-480.0,0.00013698,2]
[384481427,1757436641062,-538.25634272,0.00013698,2]
[384481429,1757436641072,-480.0,0.00013698,2]
[384481430,1757436641081,-499.73,0.00013698,2]
[384481432,1757436641091,-480.0,0.00013698,2]
[384481434,1757436641100,-480.0,0.00013698,2]
[384481436,1757436641109,-480.0,0.00013698,2]
[384481438,1757436641119,-480.0,0.00013698,2]
[384481440,1757436641128,-480.0,0.00013698,2]
[384481442,1757436641138,-480.0,0.00013698,2]
[384481445,1757436641147,-480.0,0.00013698,2]
[384481447,1757436641157,-480.0,0.00013698,2]
[384481448,1757436641166,-480.0,0.00013698,2]
[384481450,1757436641175,-480.0,0.00013698,2]
[384481452,1757436641185,-480.0,0.00013698,2]
[384481454,1757436641194,-480.0,0.00013698,2]
[384481456,1757436641203,-480.0,0.00013698,2]
[384481458,1757436641213,-480.37212035,0.00013698,2]
[384481460,1757436641223,-480.0,0.00013698,2]
[384481462,1757436641232,-480.0,0.00013698,2]
[384481464,1757436641241,-480.0,0.00013698,2]
[384481466,1757436641250,-592.91,0.00013698,2]
[384481468,1757436641260,-580.66,0.00013698,2]
[384481470,1757436641269,-487.66,0.00013698,2]
[384481472,1757436641279,-480.0,0.00013698,2]
[384481474,1757436641288,-480.0,0.00013698,2]
[384481476,1757436641298,-885.93,0.00013698,2]
[384481478,1757436641307,-480.0,0.00013698,2]
[384481480,1757436641316,-480.0,0.00013698,2]
[384481482,1757436641326,-551.04,0.00013698,2]
[384481484,1757436641335,-480.0,0.00013698,2]
[384481486,1757436641344,-480.0,0.00013698,2]
[384481488,1757436641354,-634.65,0.00013698,2]
[384481490,1757436641363,-425.35819495,0.00013698,2]
[384481492,1757436641372,-480.0,0.00013698,2]
[384481494,1757436641382,-768.79,0.00013698,2]
[384481496,1757436641391,-480.0,0.00013698,2]
[384481498,1757436641403,-539.02,0.00013698,2]
[384481500,1757436641413,-812.49,0.00013698,2]
[384481502,1757436641422,-556.04,0.00013698,2]
[384481504,1757436641431,-1337.18,0.00013698,2]
[384481506,1757436641440,-194.97831439,0.00013698,2]
[384481508,1757436641450,-480.0,0.00013698,2]
[384481510,1757436641459,-480.0,0.00013698,2]
[384481512,1757436641469,-617.37,0.00013698,2]
[384481514,1757436641479,-480.0,0.00013698,2]
[384481516,1757436641489,-480.0,0.00013698,2]
[384481518,1757436641498,-501.14,0.00013698,2]
[384481520,1757436641507,-500.0,0.00013698,2]
[384481522,1757436641516,-480.0,0.00013698,2]
[384481524,1757436641526,-480.0,0.00013698,2]
[384481526,1757436641536,-778.95,0.00013698,2]
[384481528,1757436641545,-480.0,0.00013698,2]
[384481530,1757436641554,-480.0,0.00013698,2]
[384481532,1757436641563,-480.0,0.00013698,2]
[384481534,1757436641573,-480.0,0.00013698,2]
[384481536,1757436641582,-480.0,0.00013698,2]
[384481538,1757436641593,-480.0,0.00013698,2]
[384481540,1757436641603,-480.0,0.00013698,2]
[384481542,1757436641612,-660.59,0.00013698,2]
[384481544,1757436641622,-645.48,0.00013698,2]
[384481546,1757436641631,-480.0,0.00013698,2]
[384481548,1757436641640,-480.0,0.00013698,2]
[384481550,1757436641650,-482.16527494,0.00013698,2]
[384481552,1757436641659,-480.0,0.00013698,2]
[384481554,1757436641669,-331.06812697,0.00013698,2]
[384481556,1757436641679,-480.0,0.00013698,2]
[384481558,1757436641688,-480.0,0.00013698,2]
[384481560,1757436641698,-618.94163613,0.00013698,2]
[384481562,1757436641707,-673.5,0.00013698,2]
[384481564,1757436641716,-482.46945408,0.00013698,2]
[384481566,1757436641725,-480.0,0.00013698,2]
[384481568,1757436641734,-480.0,0.00013698,2]
[384481570,1757436641744,-480.0,0.00013698,2]
[384481571,1757436641753,-480.0,0.00013698,2]
[384481573,1757436641763,-480.0,0.00013698,2]
[384481576,1757436641772,-460.55779036,0.00013698,2]
[384481577,1757436641782,-480.0,0.00013698,2]
[384481580,1757436641792,-480.0,0.00013698,2]
[384481582,1757436641801,-480.0,0.00013698,2]
[384481584,1757436641811,-482.83445905,0.00013698,2]
[384481586,1757436641820,-480.0,0.00013698,2]
[384481588,1757436641829,-288.13,0.00013698,2]
[384481590,1757436641839,-1818.41,0.00013698,2]
[384481592,1757436641848,-480.0,0.00013698,2]
[384481593,1757436641857,-754.92,0.00013698,2]
[384481595,1757436641867,-480.0,0.00013698,2]
[384481597,1757436641877,-480.0,0.00013698,2]
[384481599,1757436641886,-480.0,0.00013698,2]
[384481601,1757436641896,-480.0,0.00013698,2]
[384481603,1757436641905,-480.0,0.00013698,2]
[384481605,1757436641914,-480.0,0.00013698,2]
[384481607,1757436641923,-480.0,0.00013698,2]